fUST/lending_fUST_20240727
["ID","MTS","AMOUNT","RATE_DAILY","PERIOD"]
[333386395,1722090569223,-250.0,0.00011274,2]
[333386396,1722090569248,-250.0,0.00011304,2]
[333386397,1722090569272,-250.0,0.00011334,2]
[333386398,1722090569296,-250.0,0.00011364,2]
[333386399,1722090569320,-250.0,0.00011395,2]
[333386400,1722090569342,-250.0,0.00011425,2]
[333386401,1722090569366,-250.0,0.00011455,2]
[333386402,1722090569388,-250.0,0.00011485,2]
[333386403,1722090569410,-250.0,0.00011515,2]
[333386404,1722090569432,-250.0,0.00011545,2]
[333386405,1722090569454,-250.0,0.00011576,2]
[333386406,1722090569475,-4233.00205914,0.0001212,7]
[333386407,1722090569496,-683.77053496,0.00012121,2]
[333386408,1722090569522,-31709.59261238,0.00012121,2]
[333386411,1722090600247,167.49891665,0.0001,6]
[333386433,1722090631927,-191.47619051,0.00010902,2]
[333386434,1722090631937,-250.0,0.00011871,2]
[333386435,1722090631947,-6482.65376671,0.00012121,2]
[333386436,1722090631957,-170.402136,0.00012241,2]
[333386437,1722090631968,-300.0,0.00012499,2]
[333386438,1722090631978,-300.0,0.00012499,2]
[333386439,1722090631992,-3467.4041097,0.000125,2]
[333386440,1722090632002,-2940.67565576,0.000129,2]
[333386441,1722090632012,-169.844308,0.00013425,2]
[333386442,1722090632022,-2279.04383332,0.00013598,2]
[333386462,1722090637879,-136.71875656,0.00013598,2]
[333386464,1722090637889,-20435.44142575,0.00013686,2]
[333386544,1722090640099,-15860.98211335,0.00013686,2]
[333386546,1722090640110,-111439.01788669,0.00013688,2]
[333386547,1722090640132,-170018.67950131,0.00013688,2]
[333386548,1722090640141,-14078.54483981,0.00013698,5]
[333386549,1722090640151,-364.54139391,0.00013698,2]
[333386550,1722090640161,-500.0,0.00013698,2]
[333386551,1722090640172,-500.0,0.00013698,2]
[333386552,1722090640182,-500.0,0.00013698,2]
[333386553,1722090640193,-500.0,0.00013698,2]
[333386554,1722090640204,-419.96502977,0.00013698,2]
[333386555,1722090640214,-150.0,0.00013698,2]
[333386556,1722090640224,-500.0,0.00013698,2]
[333386557,1722090640234,-500.0,0.00013698,2]
[333386558,1722090640246,-500.0,0.00013698,2]
[333386559,1722090640256,-500.73041792,0.00013698,2]
[333386560,1722090640266,-500.0,0.00013698,2]
[333386561,1722090640276,-500.0,0.00013698,2]
[333386562,1722090640285,-500.0,0.00013698,2]
[333386563,1722090640295,-500.0,0.00013698,2]
[333386564,1722090640305,-500.0,0.00013698,2]
[333386565,1722090640315,-500.0,0.00013698,2]
[333386566,1722090640324,-500.0,0.00013698,2]
[333386567,1722090640334,-500.0,0.00013698,2]
[333386568,1722090640344,-501.59095229,0.00013698,2]
[333386569,1722090640354,-500.0,0.00013698,2]
[333386570,1722090640366,-500.0,0.00013698,2]
[333386571,1722090640376,-723.19,0.00013698,2]
[333386572,1722090640386,-500.0,0.00013698,2]
[333386573,1722090640396,-500.0,0.00013698,2]
[333386574,1722090640406,-501.469138,0.00013698,2]
[333386575,1722090640416,-500.0,0.00013698,2]
[333386576,1722090640426,-500.0,0.00013698,2]
[333386577,1722090640436,-500.0,0.00013698,2]
[333386578,1722090640445,-500.0,0.00013698,2]
[333386579,1722090640455,-500.0,0.00013698,2]
[333386580,1722090640466,-500.0,0.00013698,2]
[333386581,1722090640476,-500.0,0.00013698,2]
[333386582,1722090640486,-500.0,0.00013698,2]
[333386583,1722090640497,-500.0,0.00013698,2]
[333386584,1722090640507,-500.0,0.00013698,2]
[333386585,1722090640522,-500.0,0.00013698,2]
[333386586,1722090640532,-500.0,0.00013698,2]
[333386587,1722090640542,-500.0,0.00013698,2]
[333386588,1722090640551,-500.0,0.00013698,2]
[333386589,1722090640562,-404.57924825,0.00013698,2]
[333386590,1722090640572,-502.02012757,0.00013698,2]
[333386591,1722090640583,-500.0,0.00013698,2]
[333386592,1722090640593,-500.0,0.00013698,2]
[333386593,1722090640604,-846.49,0.00013698,2]
[333386594,1722090640615,-151.0,0.00013698,2]
[333386595,1722090640625,-151.0,0.00013698,2]
[333386596,1722090640634,-500.0,0.00013698,2]
[333386597,1722090640644,-500.0,0.00013698,2]
[333386598,1722090640655,-500.0,0.00013698,2]
[333386599,1722090640665,-500.0,0.00013698,2]
[333386600,1722090640674,-398.30343477,0.00013698,2]
[333386601,1722090640684,-500.0,0.00013698,2]
[333386602,1722090640694,-500.0,0.00013698,2]
[333386603,1722090640704,-500.0,0.00013698,2]
[333386604,1722090640713,-500.0,0.00013698,2]
[333386605,1722090640723,-500.0,0.00013698,2]
[333386606,1722090640733,-500.0,0.00013698,2]
[333386607,1722090640743,-151.0,0.00013698,2]
[333386608,1722090640755,-500.0,0.00013698,2]
[333386609,1722090640765,-500.0,0.00013698,2]
[333386610,1722090640777,-440.54186579,0.00013698,2]
[333386611,1722090640787,-151.0,0.00013698,2]
[333386612,1722090640796,-500.0,0.00013698,2]
[333386613,1722090640805,-500.0,0.00013698,2]
[333386614,1722090640815,-550.83,0.00013698,2]
[333386615,1722090640827,-227.03553628,0.00013698,2]
[333386616,1722090640836,-500.0,0.00013698,2]
[333386617,1722090640846,-500.0,0.00013698,2]
[333386618,1722090640857,-233.25117,0.00013698,2]
[333386619,1722090640867,-630.905205,0.00013698,2]
[333386620,1722090640878,-233.25117,0.00013698,2]
[333386621,1722090640888,-500.0,0.00013698,2]
[333386622,1722090640898,-630.905205,0.00013698,2]
[333386623,1722090640907,-500.0,0.00013698,2]
[333386624,1722090640917,-649.24,0.00013698,2]
[333386625,1722090640926,-2526.16,0.00013698,2]
[333386626,1722090640936,-151.0,0.00013698,2]
[333386627,1722090640946,-2526.16,0.00013698,2]
[333386628,1722090640958,-2526.16,0.00013698,2]
[333386629,1722090640969,-2526.16,0.00013698,2]
[333386630,1722090640980,-2526.16,0.00013698,2]
[333386631,1722090640990,-2526.16,0.00013698,2]
[333386632,1722090641001,-500.0,0.00013698,2]
[333386633,1722090641012,-2526.16,0.00013698,2]
[333386634,1722090641022,-2526.16,0.00013698,2]
[333386635,1722090641031,-2526.16,0.00013698,2]
[333386636,1722090641040,-2526.16,0.00013698,2]
[333386637,1722090641050,-2526.16,0.00013698,2]
[333386638,1722090641060,-500.0,0.00013698,2]
[333386639,1722090641069,-2526.16,0.00013698,2]
[333386640,1722090641080,-2526.16,0.00013698,2]
[333386641,1722090641090,-2526.16,0.00013698,2]
[333386642,1722090641100,-2526.16,0.00013698,2]
[333386643,1722090641111,-2526.16,0.00013698,2]
[333386644,1722090641121,-2526.16,0.00013698,2]
[333386645,1722090641131,-2526.16,0.00013698,2]
[333386646,1722090641142,-2526.16,0.00013698,2]
[333386647,1722090641151,-500.0,0.00013698,2]
[333386648,1722090641162,-2526.16,0.00013698,2]
[333386649,1722090641171,-661.68,0.00013698,2]
[333386650,1722090641181,-2526.16,0.00013698,2]
[333386651,1722090641192,-2526.16,0.00013698,2]
[333386652,1722090641203,-500.0,0.00013698,2]
[333386653,1722090641212,-2526.16,0.00013698,2]
[333386654,1722090641222,-2526.38738764,0.00013698,2]
[333386655,1722090641232,-500.0,0.00013698,2]
[333386656,1722090641242,-519.33,0.00013698,2]
[333386657,1722090641254,-151.0,0.00013698,2]
[333386658,1722090641264,-793.18,0.00013698,2]
[333386659,1722090641273,-500.0,0.00013698,2]
[333386660,1722090641283,-500.0,0.00013698,2]
[333386661,1722090641293,-151.0,0.00013698,2]
[333386662,1722090641302,-500.0,0.00013698,2]
[333386663,1722090641312,-151.0,0.00013698,2]
[333386664,1722090641322,-151.0,0.00013698,2]
[333386665,1722090641332,-151.0,0.00013698,2]
[333386666,1722090641342,-151.0,0.00013698,2]
[333386667,1722090641352,-500.0,0.00013698,2]
[333386668,1722090641363,-151.0,0.00013698,2]
[333386669,1722090641372,-189.603126,0.00013698,2]
[333386670,1722090641383,-500.0,0.00013698,2]
[333386671,1722090641393,-151.0,0.00013698,2]
[333386672,1722090641403,-151.0,0.00013698,2]
[333386673,1722090641413,-151.0,0.00013698,2]
[333386674,1722090641423,-151.0,0.00013698,2]
[333386675,1722090641433,-151.0,0.00013698,2]
[333386676,1722090641443,-151.0,0.00013698,2]
[333386677,1722090641456,-151.0,0.00013698,2]
[333386678,1722090641466,-151.0,0.00013698,2]
[333386679,1722090641476,-500.0,0.00013698,2]
[333386680,1722090641487,-500.0,0.00013698,2]
[333386681,1722090641497,-500.0,0.00013698,2]
[333386682,1722090641507,-151.0,0.00013698,2]
[333386683,1722090641519,-241.786727,0.00013698,2]
[333386684,1722090641530,-500.0,0.00013698,2]
[333386685,1722090641539,-151.0,0.00013698,2]
[333386686,1722090641550,-151.0,0.00013698,2]
[333386687,1722090641559,-500.0,0.00013698,2]
[333386688,1722090641569,-500.0,0.00013698,2]
[333386689,1722090641579,-1137.826568,0.00013698,2]
[333386690,1722090641590,-1137.826568,0.00013698,2]
[333386691,1722090641599,-1137.826568,0.00013698,2]
[333386692,1722090641609,-1137.826568,0.00013698,2]
[333386693,1722090641619,-151.0,0.00013698,2]
[333386694,1722090641630,-151.0,0.00013698,2]
[333386695,1722090641640,-151.0,0.00013698,2]
[333386696,1722090641650,-151.0,0.00013698,2]
[333386697,1722090641660,-151.0,0.00013698,2]
[333386698,1722090641670,-151.0,0.00013698,2]
[333386699,1722090641680,-151.0,0.00013698,2]
[333386700,1722090641690,-151.0,0.00013698,2]
[333386701,1722090641700,-151.0,0.00013698,2]
[333386702,1722090641709,-151.0,0.00013698,2]
[333386703,1722090641719,-151.0,0.00013698,2]
[333386704,1722090641728,-151.0,0.00013698,2]
[333386705,1722090641738,-500.0,0.00013698,2]
[333386706,1722090641751,-171.561649,0.00013698,2]
[333386707,1722090641760,-394.658237,0.00013698,2]
[333386708,1722090641769,-394.658237,0.00013698,2]
[333386709,1722090641780,-394.658237,0.00013698,2]
[333386710,1722090641790,-394.658237,0.00013698,2]
[333386711,1722090641799,-701.6,0.00013698,2]
[333386712,1722090641809,-366.671187,0.00013698,2]
[333386713,1722090641819,-366.671187,0.00013698,2]
[333386714,1722090641829,-151.0,0.00013698,2]
[333386715,1722090641838,-151.0,0.00013698,2]
[333386716,1722090641849,-366.671187,0.00013698,2]
[333386717,1722090641859,-366.671187,0.00013698,2]
[333386718,1722090641868,-839.87,0.00013698,2]
[333386719,1722090641878,-2083.538218,0.00013698,2]
[333386720,1722090641887,-2083.538218,0.00013698,2]
[333386721,1722090641897,-151.0,0.00013698,2]
[333386722,1722090641907,-151.0,0.00013698,2]
[333386723,1722090641917,-2083.538218,0.00013698,2]
[333386724,1722090641927,-2083.538218,0.00013698,2]
[333386725,1722090641937,-500.0,0.00013698,2]
[333386726,1722090641947,-3228.82,0.00013698,2]
[333386727,1722090641957,-527.28,0.00013698,2]
[333386728,1722090641967,-500.0,0.00013698,2]
[333386729,1722090641977,-726.76,0.00013698,2]
[333386730,1722090641987,-500.0,0.00013698,2]
[333386731,1722090641998,-500.0,0.00013698,2]
[333386732,1722090642008,-500.0,0.00013698,2]
[333386733,1722090642017,-1412.76,0.00013698,2]
[333386734,1722090642026,-500.0,0.00013698,2]
[333386735,1722090642036,-500.0,0.00013698,2]
[333386736,1722090642045,-500.0,0.00013698,2]
[333386737,1722090642055,-500.0,0.00013698,2]
[333386738,1722090642066,-500.0,0.00013698,2]
[333386739,1722090642076,-500.0,0.00013698,2]
[333386740,1722090642085,-500.0,0.00013698,2]
[333386741,1722090642095,-500.0,0.00013698,2]
[333386742,1722090642105,-500.0,0.00013698,2]
[333386743,1722090642114,-151.0,0.00013698,2]
[333386744,1722090642124,-500.0,0.00013698,2]
[333386745,1722090642134,-151.0,0.00013698,2]
[333386746,1722090642143,-500.0,0.00013698,2]
[333386747,1722090642153,-500.0,0.00013698,2]
[333386748,1722090642172,-500.0,0.00013698,2]
[333386749,1722090642183,-500.0,0.00013698,2]
[333386750,1722090642192,-500.0,0.00013698,2]
[333386751,1722090642203,-500.0,0.00013698,2]
[333386752,1722090642213,-500.0,0.00013698,2]
[333386753,1722090642223,-500.0,0.00013698,2]
[333386754,1722090642233,-1131.59,0.00013698,2]
[333386755,1722090642243,-500.0,0.00013698,2]
[333386756,1722090642254,-500.0,0.00013698,2]
[333386757,1722090642264,-500.0,0.00013698,2]
[333386758,1722090642273,-500.0,0.00013698,2]
[333386759,1722090642283,-500.0,0.00013698,2]
[333386760,1722090642293,-500.0,0.00013698,2]
[333386761,1722090642303,-500.0,0.00013698,2]
[333386762,1722090642312,-500.0,0.00013698,2]
[333386764,1722090642322,-500.0,0.00013698,2]
[333386765,1722090642332,-260.839966,0.00013698,2]
[333386766,1722090642341,-500.0,0.00013698,2]
[333386767,1722090642351,-500.0,0.00013698,2]
[333386769,1722090642360,-500.0,0.00013698,2]
[333386771,1722090642369,-279.1907336,0.00013698,2]
[333386772,1722090642380,-500.0,0.00013698,2]
[333386773,1722090642389,-500.0,0.00013698,2]
[333386774,1722090642399,-500.0,0.00013698,2]
[333386775,1722090642409,-500.0,0.00013698,2]
[333386776,1722090642419,-500.0,0.00013698,2]
[333386777,1722090642429,-500.0,0.00013698,2]
[333386778,1722090642438,-500.0,0.00013698,2]
[333386779,1722090642448,-6122.99,0.00013698,2]
[333386780,1722090642458,-500.0,0.00013698,2]
[333386782,1722090642469,-500.0,0.00013698,2]
[333386784,1722090642479,-500.0,0.00013698,2]
[333386786,1722090642488,-547.49,0.00013698,2]
[333386788,1722090642498,-500.0,0.00013698,2]
[333386789,1722090642508,-2595.92,0.00013698,2]
[333386790,1722090642523,-500.0,0.00013698,2]
[333386791,1722090642533,-853.94,0.00013698,2]
[333386792,1722090642543,-500.0,0.00013698,2]
[333386801,1722090642723,-220.70281175,0.00013698,2]
[333386802,1722090642736,-500.0,0.00013698,2]
[333386804,1722090642746,-578.85,0.00013698,2]
[333386805,1722090642760,-500.0,0.00013698,2]
[333386806,1722090642770,-1761.04,0.00013698,2]
[333386807,1722090642780,-1123.26,0.00013698,2]
[333386808,1722090642790,-151.0,0.00013698,2]
[333386809,1722090642800,-151.0,0.00013698,2]
[333386810,1722090642810,-151.0,0.00013698,2]
[333386811,1722090642820,-500.0,0.00013698,2]
[333386812,1722090642829,-151.0,0.00013698,2]
[333386813,1722090642839,-151.0,0.00013698,2]
[333386814,1722090642850,-1253.52,0.00013698,2]
[333386815,1722090642859,-1026.71,0.00013698,2]
[333386816,1722090642869,-500.0,0.00013698,2]
[333386817,1722090642878,-500.0,0.00013698,2]
[333386818,1722090642888,-500.0,0.00013698,2]
[333386819,1722090642898,-500.0,0.00013698,2]
[333386820,1722090642907,-500.0,0.00013698,2]
[333386821,1722090642917,-635.49,0.00013698,2]
[333386822,1722090642927,-500.0,0.00013698,2]
[333386823,1722090642936,-151.0,0.00013698,2]
[333386825,1722090642945,-1107.16,0.00013698,2]
[333386827,1722090642955,-151.0,0.00013698,2]
[333386828,1722090642964,-293.215157,0.00013698,2]
[333386830,1722090642973,-500.0,0.00013698,2]
[333386832,1722090642982,-500.0,0.00013698,2]
[333386834,1722090642992,-481.51294287,0.00013698,2]
[333386837,1722090643166,-18.48705713,0.00013698,2]
[333386838,1722090643176,-151.0,0.00013698,2]
[333386839,1722090643185,-151.0,0.00013698,2]
[333386840,1722090643195,-151.0,0.00013698,2]
[333386841,1722090643205,-500.0,0.00013698,2]
[333386842,1722090643214,-297.387902,0.00013698,2]
[333386843,1722090643224,-140.31813517,0.00013698,2]
[333386844,1722090643431,-669.63186483,0.00013698,2]
[333386845,1722090643441,-297.387902,0.00013698,2]
[333386846,1722090643450,-500.0,0.00013698,2]
[333386847,1722090643459,-297.387902,0.00013698,2]
[333386848,1722090643469,-500.0,0.00013698,2]
[333386849,1722090643479,-228.98263415,0.00013698,2]
[333386850,1722090643489,-500.0,0.00013698,2]
[333386851,1722090643499,-297.387902,0.00013698,2]
[333386852,1722090643508,-739.46,0.00013698,2]
[333386853,1722090643519,-297.387902,0.00013698,2]
[333386854,1722090643532,-621.95828282,0.00013698,2]
[333386855,1722090643541,-297.387902,0.00013698,2]
[333386856,1722090643551,-1018.7,0.00013698,2]
[333386857,1722090643560,-179.045759,0.00013698,2]
[333386858,1722090643571,-179.045759,0.00013698,2]
[333386859,1722090643581,-500.0,0.00013698,2]
[333386860,1722090643591,-179.045759,0.00013698,2]
[333386861,1722090643601,-500.0,0.00013698,2]
[333386862,1722090643611,-4334.01,0.00013698,2]
[333386863,1722090643620,-549.79,0.00013698,2]
[333386864,1722090643630,-179.045759,0.00013698,2]
[333386865,1722090643639,-500.0,0.00013698,2]
[333386866,1722090643649,-179.045759,0.00013698,2]
[333386867,1722090643658,-179.045759,0.00013698,2]
[333386868,1722090643667,-500.0,0.00013698,2]
[333386869,1722090643677,-524.82,0.00013698,2]
[333386870,1722090643687,-500.0,0.00013698,2]
[333386871,1722090643697,-151.0,0.00013698,2]
[333386872,1722090643706,-500.0,0.00013698,2]
[333386873,1722090643716,-151.0,0.00013698,2]
[333386874,1722090643726,-176.231775,0.00013698,2]
[333386875,1722090643735,-500.0,0.00013698,2]
[333386876,1722090643745,-800.14,0.00013698,2]
[333386877,1722090643755,-500.0,0.00013698,2]
[333386878,1722090643765,-596.99793014,0.00013698,2]
[333386879,1722090643775,-500.0,0.00013698,2]
[333386880,1722090643784,-500.0,0.00013698,2]
[333386881,1722090643794,-500.0,0.00013698,2]
[333386882,1722090643803,-1695.71,0.00013698,2]
[333386883,1722090643813,-798.44,0.00013698,2]
[333386884,1722090643823,-2512.11,0.00013698,2]
[333386885,1722090643833,-502.29692296,0.00013698,2]
[333386886,1722090643842,-569.12686434,0.00013698,2]
[333386887,1722090643851,-500.0,0.00013698,2]
[333386888,1722090643861,-500.0,0.00013698,2]
[333386889,1722090643870,-871.91,0.00013698,2]
[333386890,1722090643880,-515.78965127,0.00013698,2]
[333386891,1722090643890,-500.0,0.00013698,2]
[333386892,1722090643899,-343.38009423,0.00013698,2]
[333386893,1722090643908,-500.0,0.00013698,2]
[333386894,1722090643918,-574.28,0.00013698,2]
[333386895,1722090643927,-151.0,0.00013698,2]
[333386896,1722090643936,-151.418861,0.00013698,2]
[333386897,1722090643945,-885.46,0.00013698,2]
[333386898,1722090643954,-500.0,0.00013698,2]
[333386899,1722090643964,-905.79,0.00013698,2]
[333386900,1722090643973,-605.62,0.00013698,2]
[333386901,1722090643983,-927.8,0.00013698,2]
[333386902,1722090643993,-500.0,0.00013698,2]
[333386903,1722090644005,-500.0,0.00013698,2]
[333386904,1722090644014,-500.0,0.00013698,2]
[333386905,1722090644023,-500.0,0.00013698,2]
[333386906,1722090644036,-500.0,0.00013698,2]
[333386907,1722090644048,-500.0,0.00013698,2]
[333386908,1722090644061,-1009.808337,0.00013698,2]
[333386909,1722090644073,-1009.808337,0.00013698,2]
[333386910,1722090644085,-1009.808337,0.00013698,2]
[333386911,1722090644097,-1009.808337,0.00013698,2]
[333386912,1722090644109,-1300.94,0.00013698,2]
[333386913,1722090644119,-426.65820485,0.00013698,2]
[333386914,1722090644135,-73.34179515,0.00013698,2]
[333386915,1722090644147,-1009.808337,0.00013698,2]
[333386916,1722090644158,-1009.808337,0.00013698,2]
[333386917,1722090644170,-1009.808337,0.00013698,2]
[333386918,1722090644182,-1009.808337,0.00013698,2]
[333386919,1722090644197,-1052.32,0.00013698,2]
[333386920,1722090644210,-500.0,0.00013698,2]
[333386921,1722090644221,-602.74,0.00013698,2]
[333386922,1722090644233,-151.0,0.00013698,2]
[333386923,1722090644245,-363.87863501,0.00013698,2]
[333386924,1722090644264,-136.12136499,0.00013698,2]
[333386925,1722090644275,-185.67863501,0.00013698,2]
[333386926,1722090644299,-1032.33136499,0.00013698,2]
[333386927,1722090644310,-500.0,0.00013698,2]
[333386928,1722090644321,-500.0,0.00013698,2]
[333386929,1722090644333,-500.0,0.00013698,2]
[333386930,1722090644345,-175.25440658,0.00013698,2]
[333386931,1722090644360,-1633.76559342,0.00013698,2]
[333386932,1722090644371,-1080.09485158,0.00013698,2]
[333386933,1722090644385,-1164.21514842,0.00013698,2]
[333386934,1722090644396,-42.21848108,0.00013698,2]
[333386935,1722090644408,-416.96102591,0.00013698,2]
[333387074,1722090665872,266.06008771,9.9e-05,2]
[333387077,1722090870906,244.89057225,9.999e-05,2]
[333387084,1722091327178,-250.0,0.00011629,2]
[333387085,1722091327206,-250.0,0.00012294,2]
[333387086,1722091327236,-250.0,0.00012328,2]
[333387087,1722091327267,-250.0,0.00012362,2]
[333387088,1722091327297,-300.0,0.00012382,2]
[333387089,1722091327329,-24900.0,0.00012383,2]
[333387090,1722091327358,-250.0,0.00012395,2]
[333387091,1722091327384,-167.301715,0.00012408,2]
[333387092,1722091327413,-250.0,0.00012429,2]
[333387093,1722091327441,-250.0,0.00012463,2]
[333387094,1722091327467,-250.0,0.00012497,2]
[333387095,1722091327495,-250.0,0.0001253,2]
[333387096,1722091327523,-250.0,0.00012564,2]
[333387097,1722091327554,-250.0,0.00012598,2]
[333387098,1722091327583,-250.0,0.00012632,2]
[333387099,1722091327613,-250.0,0.00012665,2]
[333387100,1722091327642,-250.0,0.00012699,2]
[333387101,1722091327670,-250.0,0.00012733,2]
[333387102,1722091327697,-250.0,0.00012766,2]
[333387103,1722091327727,-250.0,0.000128,2]
[333387104,1722091327754,-250.0,0.00012834,2]
[333387105,1722091327783,-250.0,0.00012868,2]
[333387106,1722091327812,-2573.09119879,0.000129,2]
[333387107,1722091327840,-250.0,0.00012901,2]
[333387108,1722091327869,-250.0,0.00012935,2]
[333387109,1722091327897,-1774.50728618,0.00013,2]
[333387110,1722091327925,-335.41648324,0.000132,2]
[333387111,1722091327955,-583.25604818,0.000134,2]
[333387112,1722091327990,-2039.91094821,0.000134,2]
[333387113,1722091328026,-9663.0503594,0.000134,2]
[333387114,1722091328057,-171.125276,0.00013425,2]
[333387115,1722091328090,-315340.988868,0.0001349,2]
[333387116,1722091328124,-1664.82775784,0.000135,5]
[333387117,1722091328162,-47574.68229481,0.000135,5]
[333387118,1722091328197,-87661.84176435,0.000135,2]
[333387127,1722091546126,-593.87,0.00010959,2]
[333387128,1722091546149,-195.986971,0.00012247,2]
[333387129,1722091546170,-114.87585441,0.0001228,2]
[333387132,1722091623030,-250.0,0.00011606,2]
[333387133,1722091623058,-775.7,0.00011714,2]
[333387134,1722091626104,-115.8937235,0.00011714,2]
[333387135,1722091626126,-151.3962765,0.00012119,2]
[333387136,1722091631096,-3.27118845,0.00012119,2]
[333387137,1722091631120,-81.11111659,0.0001228,2]
[333387138,1722091631142,-237.35294593,0.00012293,2]
[333387139,1722091633111,-154.66746495,0.00012119,2]
[333387140,1722091633134,-74.44391897,0.00012293,2]
[333387141,1722091633159,-195.986971,0.00012314,2]
[333387142,1722091633183,-195.986971,0.00012348,2]
[333387143,1722091633206,-195.986971,0.00012381,2]
[333387144,1722091633230,-170.05446608,0.00012415,2]
[333387145,1722091644139,-25.93250492,0.00012415,2]
[333387146,1722091644161,-300.0,0.00012433,2]
[333387147,1722091644183,-1834.79827492,0.00012434,2]
[333387149,1722091758408,212.17,9.999e-05,2]
[333387150,1722091773200,212.17,9.999e-05,2]
[333387151,1722091776872,4000.0,0.0002,59]
[333387222,1722091832072,-154.97168506,0.00012119,2]
[333387224,1722091832081,-94.82987121,0.00012433,2]
[333387271,1722091838290,-205.17012879,0.00012433,2]
[333387272,1722091838301,-82.21818121,0.00012434,2]
[333387273,1722091838315,-22982.98354387,0.00012434,2]
[333387274,1722091838326,-195.986971,0.00012448,2]
[333387275,1722091838336,-195.986971,0.00012482,2]
[333387276,1722091838348,-195.986971,0.00012516,2]
[333387277,1722091838360,-195.986971,0.00012549,2]
[333387278,1722091838371,-195.986971,0.00012583,2]
[333387279,1722091838381,-195.986971,0.00012616,2]
[333387280,1722091838391,-195.986971,0.0001265,2]
[333387281,1722091838401,-195.986971,0.00012684,2]
[333387282,1722091838412,-195.986971,0.00012717,2]
[333387283,1722091838425,-195.986971,0.00012751,2]
[333387284,1722091838436,-195.986971,0.00012784,2]
[333387285,1722091838447,-195.986971,0.00012818,2]
[333387286,1722091838458,-195.986971,0.00012851,2]
[333387287,1722091838468,-195.986971,0.00012885,2]
[333387288,1722091838479,-4000.0,0.00013,9]
[333387289,1722091838489,-2000.0,0.0001339,2]
[333387290,1722091838499,-23567.38755354,0.000134,2]
[333387291,1722091838508,-171.125276,0.00013425,2]
[333387292,1722091838517,-317393.990123,0.0001349,2]
[333387293,1722091838531,-19209.83624598,0.000135,5]
[333387301,1722091840328,-11616.77732134,0.000135,5]
[333387302,1722091840338,-359983.78425519,0.000135,2]
[333387303,1722091840350,-5242.21865499,0.000135,2]
[333387333,1722091843415,-14.40526675,0.000135,2]
[333387374,1722091846077,-6891.39999999,0.000135,2]
[333387375,1722091846925,-11645.72366459,0.000135,2]
[333387376,1722091853364,273.37336231,9.9e-05,2]
[333387377,1722091861608,273.37336231,9.9e-05,2]
[333387380,1722091871062,273.37336231,9.9e-05,2]
[333387388,1722092253741,269.25458933,9.999e-05,7]
[333387390,1722092344092,269.25458933,9.999e-05,7]
[333387391,1722092428744,269.25458933,9.999e-05,7]
[333387394,1722092505755,288.58461776,9.999e-05,7]
[333387401,1722092757160,-300.0,0.00011692,2]
[333387402,1722092757182,-300.0,0.00011692,2]
[333387403,1722092757206,-156.27433618,0.00011693,2]
[333387404,1722092781272,459.2503171,9.999e-05,2]
[333387406,1722092840105,-300.0,0.00011692,2]
[333387407,1722092840129,-281.83,0.00011693,2]
[333387408,1722092843113,-254.878929,0.00011693,2]
[333387409,1722092852094,-405.6892572,0.00011693,2]